fUST/lending_fUST_20250829
["ID","MTS","AMOUNT","RATE_DAILY","PERIOD"]
[381918916,1756407054045,-195.202485,0.000236,7]
[381918917,1756407054055,-151.0,0.000236,7]
[381918918,1756407054064,-195.202485,0.000236,7]
[381918919,1756407054074,-195.202485,0.000236,7]
[381918921,1756407054290,-151.0,0.000236,7]
[381918922,1756407054306,-151.0,0.000236,7]
[381918923,1756407054317,-210.622972,0.000236,7]
[381918924,1756407054326,-151.0,0.000236,7]
[381918925,1756407054336,-151.0,0.000236,7]
[381918926,1756407054345,-151.0,0.000236,7]
[381918927,1756407054355,-151.0,0.000236,7]
[381918928,1756407054364,-151.0,0.000236,7]
[381918929,1756407054374,-151.0,0.000236,7]
[381918930,1756407054383,-151.0,0.000236,7]
[381918931,1756407054392,-151.0,0.000236,7]
[381918932,1756407054401,-529.67291817,0.000236,7]
[381918933,1756407054410,-151.0,0.000236,7]
[381918934,1756407054419,-151.0,0.000236,7]
[381918935,1756407054430,-151.0,0.000236,7]
[381918936,1756407054439,-151.0,0.000236,7]
[381918937,1756407054449,-288.321397,0.000236,7]
[381918938,1756407054458,-151.0,0.000236,7]
[381918939,1756407054468,-151.0,0.000236,7]
[381918940,1756407054477,-151.0,0.000236,7]
[381918941,1756407054486,-705.469654,0.000236,7]
[381918942,1756407054497,-151.0,0.000236,7]
[381918943,1756407054506,-705.469654,0.000236,7]
[381918944,1756407054515,-151.0,0.000236,7]
[381918945,1756407054524,-705.469654,0.000236,7]
[381918946,1756407054533,-294.537118,0.000236,7]
[381918947,1756407054542,-705.469654,0.000236,7]
[381918948,1756407054551,-294.537118,0.000236,7]
[381918949,1756407054560,-294.537118,0.000236,7]
[381918950,1756407054570,-151.0,0.000236,7]
[381918951,1756407054579,-294.537118,0.000236,7]
[381918952,1756407054589,-187.915761,0.000236,7]
[381918953,1756407054598,-151.0,0.000236,7]
[381918954,1756407054608,-151.0,0.000236,7]
[381918955,1756407054617,-151.0,0.000236,7]
[381918956,1756407054626,-151.0,0.000236,7]
[381918957,1756407054636,-151.0,0.000236,7]
[381918958,1756407054645,-151.0,0.000236,7]
[381918959,1756407054655,-151.0,0.000236,7]
[381918960,1756407054664,-151.0,0.000236,7]
[381918961,1756407054673,-151.0,0.000236,7]
[381918962,1756407054684,-417.15472785,0.000236,7]
[381918963,1756407054693,-823.0,0.00023604,2]
[381918964,1756407054702,-151.0,0.00023708,7]
[381918965,1756407054712,-4000.0,0.00023708,2]
[381918966,1756407054721,-666.69790913,0.00023735,2]
[381918967,1756407054730,-547.88,0.00023835,2]
[381918968,1756407054740,-151.0,0.00023835,7]
[381918969,1756407054749,-179.264534,0.00023835,7]
[381918970,1756407054759,-151.0,0.00023835,7]
[381918971,1756407054769,-179.264534,0.00023835,7]
[381918972,1756407054778,-179.264534,0.00023835,7]
[381918973,1756407054787,-179.264534,0.00023835,7]
[381918974,1756407054797,-151.0,0.00023835,7]
[381918975,1756407054808,-151.0,0.00023835,7]
[381918976,1756407054817,-151.0,0.00023835,7]
[381918977,1756407054827,-151.0,0.00023835,7]
[381918978,1756407054836,-208.238034,0.00023835,7]
[381918979,1756407054845,-208.238034,0.00023835,7]
[381918980,1756407054855,-208.238034,0.00023835,7]
[381918981,1756407054868,-208.238034,0.00023835,7]
[381918982,1756407054878,-549.49,0.00023835,2]
[381918983,1756407054887,-917.34,0.00023835,2]
[381918984,1756407054899,-480.0,0.00023835,2]
[381918985,1756407054909,-480.0,0.00023835,2]
[381918986,1756407054918,-648.33,0.00023835,2]
[381918987,1756407054929,-819.15,0.00023835,2]
[381918988,1756407054939,-874.08,0.00023835,2]
[381918989,1756407054950,-480.0,0.00023835,2]
[381918990,1756407054959,-216.18903889,0.00023835,7]
[381918991,1756407054969,-480.0,0.00023835,2]
[381918992,1756407054978,-1358.09,0.00023835,2]
[381918993,1756407054987,-612.39,0.00023835,2]
[381918994,1756407054997,-583.31,0.00023835,2]
[381918995,1756407055007,-480.0,0.00023835,2]
[381918996,1756407055017,-590.28,0.00023835,2]
[381918997,1756407055026,-480.0,0.00023835,2]
[381918998,1756407055036,-541.98,0.00023835,2]
[381918999,1756407055045,-22646.17,0.000239,7]
[381919000,1756407055054,-151.0,0.000239,7]
[381919001,1756407055063,-151.0,0.000239,7]
[381919002,1756407055072,-151.0,0.000239,7]
[381919003,1756407055082,-151.0,0.000239,7]
[381919004,1756407055091,-151.0,0.000239,7]
[381919005,1756407055101,-151.0,0.000239,7]
[381919006,1756407055110,-244.136984,0.000239,7]
[381919007,1756407055119,-244.136984,0.000239,7]
[381919008,1756407055129,-244.136984,0.000239,7]
[381919009,1756407055138,-244.136984,0.000239,7]
[381919010,1756407055148,-425.52029335,0.000239,7]
[381919011,1756407055158,-160.0,0.000239,7]
[381919012,1756407055168,-160.0,0.00024,7]
[381919013,1756407055179,-160.0,0.00024,7]
[381919014,1756407055189,-160.0,0.00024,7]
[381919015,1756407055198,-160.0,0.00024,7]
[381919016,1756407055207,-845.47023312,0.00024,7]
[381919017,1756407055216,-232.64478309,0.00024,7]
[381919018,1756407055225,-217.27834477,0.00024,7]
[381919019,1756407055235,-216.18903889,0.00024,3]
[381919020,1756407055245,-160.0,0.00024,7]
[381919021,1756407055254,-4000.0,0.00024057,4]
[381919022,1756407055263,-860.0,0.00024062,2]
[381919023,1756407055272,-151.0,0.00024065,2]
[381919024,1756407055282,-151.0,0.00024065,2]
[381919025,1756407055291,-151.0,0.00024065,2]
[381919026,1756407055300,-151.0,0.00024065,2]
[381919027,1756407055309,-151.0,0.00024065,2]
[381919028,1756407055319,-151.0,0.00024065,2]
[381919029,1756407055328,-151.0,0.00024065,2]
[381919030,1756407055338,-500.0,0.00024065,2]
[381919031,1756407055347,-151.0,0.00024065,2]
[381919032,1756407055357,-151.0,0.00024065,2]
[381919033,1756407055367,-151.0,0.00024065,2]
[381919034,1756407055376,-549.49,0.00024109,2]
[381919035,1756407055385,-917.34,0.00024109,2]
[381919036,1756407055395,-480.0,0.00024109,2]
[381919037,1756407055404,-480.0,0.00024109,2]
[381919038,1756407055413,-648.33,0.00024109,2]
[381919039,1756407055423,-819.15,0.00024109,2]
[381919040,1756407055433,-874.08,0.00024109,2]
[381919041,1756407055443,-480.0,0.00024109,2]
[381919042,1756407055452,-480.0,0.00024109,2]
[381919043,1756407055461,-1358.09,0.00024109,2]
[381919044,1756407055471,-612.39,0.00024109,2]
[381919045,1756407055480,-583.31,0.00024109,2]
[381919046,1756407055490,-380.81890397,0.00024109,2]
[381919047,1756407055499,-590.28,0.00024109,2]
[381919048,1756407055508,-480.0,0.00024109,2]
[381919049,1756407055518,-541.98,0.00024109,2]
[381919050,1756407055527,-550.0,0.0002411,2]
[381919051,1756407055536,-454.378,0.0002411,6]
[381919052,1756407055545,-168.0,0.00024232,2]
[381919053,1756407055555,-4500.0,0.00024256,2]
[381919054,1756407055563,-151.0,0.00024279,7]
[381919055,1756407055573,-151.0,0.00024279,7]
[381919056,1756407055582,-151.0,0.00024279,7]
[381919057,1756407055591,-151.0,0.00024279,7]
[381919058,1756407055600,-151.0,0.00024339,2]
[381919059,1756407055609,-151.0,0.00024339,2]
[381919060,1756407055618,-151.0,0.00024339,2]
[381919061,1756407055628,-500.0,0.00024339,2]
[381919062,1756407055637,-151.0,0.00024339,2]
[381919063,1756407055647,-151.0,0.00024339,2]
[381919064,1756407055656,-151.0,0.00024339,2]
[381919065,1756407055666,-12500.0,0.00024357,7]
[381919066,1756407055675,-190.233192,0.00024357,7]
[381919067,1756407055686,-190.233192,0.00024357,7]
[381919068,1756407055695,-190.233192,0.00024357,7]
[381919069,1756407055704,-190.233192,0.00024357,7]
[381919070,1756407055714,-151.0,0.00024357,7]
[381919071,1756407055723,-151.0,0.00024357,7]
[381919072,1756407055733,-151.0,0.00024357,7]
[381919073,1756407055742,-234.431541,0.00024357,7]
[381919074,1756407055751,-151.0,0.00024357,7]
[381919075,1756407055760,-12500.0,0.00024365,7]
[381919076,1756407055769,-160.0,0.0002437,7]
[381919077,1756407055779,-160.0,0.0002437,7]
[381919078,1756407055788,-845.47023312,0.0002437,7]
[381919079,1756407055798,-425.52029335,0.0002437,7]
[381919080,1756407055807,-160.0,0.0002437,7]
[381919081,1756407055817,-232.64478309,0.0002437,7]
[381919082,1756407055826,-217.27834477,0.0002437,7]
[381919083,1756407055835,-216.18903889,0.0002437,7]
[381919084,1756407055844,-417.15472785,0.0002437,7]
[381919085,1756407055856,-12500.0,0.00024374,7]
[381919086,1756407055868,-544.34399907,0.00024383,2]
[381919087,1756407055878,-2177.37599627,0.00024383,2]
[381919088,1756407055887,-4894.19689563,0.00024383,2]
[381919089,1756407055896,-12500.0,0.00024383,7]
[381919090,1756407055906,-539.13001521,0.00024383,2]
[381919091,1756407055916,-2154.36354079,0.00024383,2]
[381919092,1756407055925,-222.2863256,0.00024383,2]
[381919093,1756407055937,-888.25615711,0.00024383,2]
[381919094,1756407055947,-549.49,0.00024383,2]
[381919095,1756407055956,-917.34,0.00024383,2]
[381919096,1756407055965,-480.0,0.00024383,2]
[381919097,1756407055975,-951.11319248,0.00024383,7]
[381919098,1756407055984,-480.0,0.00024383,2]
[381919099,1756407055993,-648.33,0.00024383,2]
[381919100,1756407056002,-819.15,0.00024383,2]
[381919101,1756407056011,-874.08,0.00024383,2]
[381919102,1756407056021,-480.0,0.00024383,2]
[381919103,1756407056031,-480.0,0.00024383,2]
[381919104,1756407056041,-1358.09,0.00024383,2]
[381919105,1756407056050,-612.39,0.00024383,2]
[381919106,1756407056059,-583.31,0.00024383,2]
[381919107,1756407056068,-590.28,0.00024383,2]
[381919108,1756407056077,-438.81239717,0.00024383,2]
[381919109,1756407056087,-541.98,0.00024383,2]
[381919110,1756407056096,-807.44498013,0.00024519,7]
[381919111,1756407056105,-2630.8622879,0.00024574,2]
[381919112,1756407056114,-992.2541213,0.00024574,2]
[381919113,1756407056124,-960.0,0.0002461,2]
[381919114,1756407056133,-198.0,0.00024613,2]
[381919115,1756407056143,-198.0,0.00024613,2]
[381919116,1756407056152,-198.0,0.00024613,2]
[381919117,1756407056161,-500.0,0.00024613,2]
[381919118,1756407056171,-151.0,0.00024613,2]
[381919119,1756407056181,-198.0,0.00024613,2]
[381919120,1756407056190,-198.0,0.00024613,2]
[381919121,1756407056201,-201.93286099,0.00024621,2]
[381919122,1756407056212,-169.53498201,0.00024624,2]
[381919123,1756407056222,-49434.70035989,0.0002464,7]
[381919127,1756407669256,1000.0,0.00027397,120]
[381919128,1756407676674,1000.0,0.00027397,120]
[381919129,1756407701700,1000.0,0.00030272,60]
[381919130,1756407708352,1000.0,0.00030272,60]
[381919131,1756407715685,1000.0,0.00030272,60]
[381919132,1756407724420,1000.0,0.00030272,60]
[381919133,1756407729802,1000.0,0.00030272,60]
[381919134,1756407732661,163.520632,0.00013699,2]
[381919136,1756407737466,1000.0,0.00027397,120]
[381919137,1756407770835,1000.0,0.00030272,120]
[381919138,1756407779130,1000.0,0.00027397,120]
[381919139,1756407920107,1000.0,0.00027397,120]
[381919168,1756408231718,-508.71731649,0.00019078,2]
[381919174,1756408231772,-64.84526264,0.00019078,2]
[381919176,1756408231781,-249.73899806,0.00019172,2]
[381919200,1756408237703,-50.26100194,0.00019172,2]
[381919201,1756408237713,-731.0,0.00019172,2]
[381919202,1756408237723,-500.0,0.00019173,2]
[381919203,1756408237732,-500.0,0.00019173,2]
[381919204,1756408237741,-500.0,0.00019173,2]
[381919205,1756408237751,-500.0,0.00019173,2]
[381919206,1756408237760,-500.0,0.00019173,2]
[381919207,1756408237770,-500.0,0.00019173,2]
[381919208,1756408237779,-500.0,0.00019173,2]
[381919209,1756408237788,-500.0,0.00019173,2]
[381919210,1756408237798,-480.0,0.00019178,2]
[381919211,1756408237807,-480.0,0.00019178,2]
[381919212,1756408237816,-480.0,0.00019178,2]
[381919213,1756408237825,-480.0,0.00019178,2]
[381919214,1756408237834,-480.0,0.00019178,2]
[381919215,1756408237844,-480.0,0.00019178,2]
[381919216,1756408237853,-480.0,0.00019178,2]
[381919217,1756408237862,-480.0,0.00019178,2]
[381919218,1756408237871,-480.0,0.00019178,2]
[381919219,1756408237880,-480.0,0.00019178,2]
[381919220,1756408237890,-480.0,0.00019178,2]
[381919221,1756408237900,-155.14438648,0.00019178,2]
[381919222,1756408237912,-324.85561352,0.00019178,2]
[381919223,1756408237921,-175.14438648,0.00019178,2]
[381919224,1756408237938,-304.85561352,0.00019178,2]
[381919226,1756408237948,-480.0,0.00019178,2]
[381919227,1756408237957,-480.0,0.00019178,2]
[381919228,1756408237966,-500.0,0.00019178,2]
[381919229,1756408237976,-500.0,0.00019178,2]
[381919230,1756408237986,-444.94460097,0.00019178,2]
[381919231,1756408237995,-480.0,0.00019178,2]
[381919232,1756408238004,-480.0,0.00019178,2]
[381919233,1756408238014,-480.0,0.00019178,2]
[381919234,1756408238023,-480.0,0.00019178,2]
[381919235,1756408238032,-480.0,0.00019178,2]
[381919236,1756408238042,-511.2,0.00019178,2]
[381919237,1756408238051,-629.0815396,0.00019178,2]
[381919238,1756408238060,-538.59162245,0.00019178,2]
[381919239,1756408238069,-480.0,0.00019178,2]
[381919240,1756408238078,-235.85,0.00019178,2]
[381919241,1756408238087,-480.0,0.00019178,2]
[381919242,1756408238097,-480.0,0.00019178,2]
[381919243,1756408238106,-480.0,0.00019178,2]
[381919244,1756408238115,-480.0,0.00019178,2]
[381919245,1756408238124,-480.0,0.00019178,2]
[381919246,1756408238134,-480.0,0.00019178,2]
[381919247,1756408238143,-480.0,0.00019178,2]
[381919248,1756408238153,-480.0,0.00019178,2]
[381919249,1756408238162,-480.0,0.00019178,2]
[381919250,1756408238171,-543.58,0.00019178,2]
[381919251,1756408238180,-480.0,0.00019178,2]
[381919252,1756408238190,-480.0,0.00019178,2]
[381919253,1756408238202,-480.0,0.00019178,2]
[381919254,1756408238212,-480.0,0.00019178,2]
[381919255,1756408238221,-480.0,0.00019178,2]
[381919256,1756408238230,-480.0,0.00019178,2]
[381919257,1756408238241,-596.22912422,0.00019178,2]
[381919258,1756408238251,-480.0,0.00019178,2]
[381919259,1756408238261,-480.0,0.00019178,2]
[381919260,1756408238270,-480.0,0.00019178,2]
[381919261,1756408238280,-480.0,0.00019178,2]
[381919262,1756408238291,-480.0,0.00019178,2]
[381919263,1756408238300,-480.0,0.00019178,2]
[381919264,1756408238309,-480.0,0.00019178,2]
[381919265,1756408238319,-480.0,0.00019178,2]
[381919266,1756408238327,-480.0,0.00019178,2]
[381919267,1756408238337,-480.0,0.00019178,2]
[381919268,1756408238346,-480.0,0.00019178,2]
[381919269,1756408238355,-480.0,0.00019178,2]
[381919270,1756408238364,-480.0,0.00019178,2]
[381919271,1756408238373,-480.0,0.00019178,2]
[381919272,1756408238382,-480.0,0.00019178,2]
[381919273,1756408238391,-480.0,0.00019178,2]
[381919274,1756408238400,-480.0,0.00019178,2]
[381919275,1756408238409,-480.0,0.00019178,2]
[381919276,1756408238418,-480.0,0.00019178,2]
[381919277,1756408238427,-571.71,0.00019178,2]
[381919278,1756408238436,-480.0,0.00019178,2]
[381919279,1756408238445,-480.0,0.00019178,2]
[381919280,1756408238454,-480.0,0.00019178,2]
[381919281,1756408238463,-480.0,0.00019178,2]
[381919282,1756408238473,-529.93,0.00019178,2]
[381919283,1756408238483,-480.0,0.00019178,2]
[381919284,1756408238492,-480.0,0.00019178,2]
[381919285,1756408238501,-481.8,0.00019178,2]
[381919286,1756408238512,-495.47,0.00019178,2]
[381919287,1756408238521,-480.0,0.00019178,2]
[381919288,1756408238531,-480.0,0.00019178,2]
[381919289,1756408238540,-480.0,0.00019178,2]
[381919290,1756408238548,-480.0,0.00019178,2]
[381919291,1756408238558,-480.0,0.00019178,2]
[381919292,1756408238567,-480.0,0.00019178,2]
[381919293,1756408238576,-480.0,0.00019178,2]
[381919294,1756408238585,-480.0,0.00019178,2]
[381919295,1756408238594,-886.53,0.00019178,2]
[381919296,1756408238603,-480.0,0.00019178,2]
[381919297,1756408238612,-480.0,0.00019178,2]
[381919298,1756408238622,-480.0,0.00019178,2]
[381919299,1756408238631,-480.0,0.00019178,2]
[381919300,1756408238643,-480.0,0.00019178,2]
[381919301,1756408238651,-480.0,0.00019178,2]
[381919302,1756408238660,-480.0,0.00019178,2]
[381919303,1756408238669,-219.14901394,0.00019178,2]
[381919304,1756408238678,-515.85,0.00019178,2]
[381919305,1756408238687,-480.0,0.00019178,2]
[381919306,1756408238696,-480.0,0.00019178,2]
[381919307,1756408238705,-480.0,0.00019178,2]
[381919308,1756408238714,-480.0,0.00019178,2]
[381919309,1756408238723,-480.0,0.00019178,2]
[381919310,1756408238732,-480.0,0.00019178,2]
[381919311,1756408238741,-551.42,0.00019178,2]
[381919312,1756408238751,-480.0,0.00019178,2]
[381919313,1756408238759,-480.0,0.00019178,2]
[381919314,1756408238769,-521.45,0.00019178,2]
[381919315,1756408238778,-480.0,0.00019178,2]
[381919316,1756408238786,-480.0,0.00019178,2]
[381919317,1756408238796,-480.0,0.00019178,2]
[381919318,1756408238805,-480.0,0.00019178,2]
[381919319,1756408238814,-480.0,0.00019178,2]
[381919320,1756408238823,-480.0,0.00019178,2]
[381919321,1756408238833,-480.0,0.00019178,2]
[381919322,1756408238842,-480.0,0.00019178,2]
[381919323,1756408238851,-480.0,0.00019178,2]
[381919324,1756408238861,-589.65,0.00019178,2]
[381919325,1756408238870,-480.0,0.00019178,2]
[381919326,1756408238880,-669.89,0.00019178,2]
[381919327,1756408238889,-480.0,0.00019178,2]
[381919328,1756408238898,-480.0,0.00019178,2]
[381919329,1756408238907,-547.67581536,0.00019178,2]
[381919330,1756408238916,-480.0,0.00019178,2]
[381919331,1756408238926,-480.0,0.00019178,2]
[381919332,1756408238936,-480.0,0.00019178,2]
[381919333,1756408238945,-480.0,0.00019178,2]
[381919334,1756408238954,-480.0,0.00019178,2]
[381919335,1756408238963,-480.0,0.00019178,2]
[381919336,1756408238972,-609.92,0.00019178,2]
[381919337,1756408238982,-480.0,0.00019178,2]
[381919338,1756408238991,-480.0,0.00019178,2]
[381919339,1756408239001,-480.0,0.00019178,2]
[381919340,1756408239010,-480.0,0.00019178,2]
[381919341,1756408239020,-480.0,0.00019178,2]
[381919342,1756408239029,-480.0,0.00019178,2]
[381919343,1756408239039,-480.0,0.00019178,2]
[381919344,1756408239048,-480.0,0.00019178,2]
[381919345,1756408239058,-480.0,0.00019178,2]
[381919346,1756408239068,-480.0,0.00019178,2]
[381919347,1756408239078,-480.0,0.00019178,2]
[381919348,1756408239088,-480.0,0.00019178,2]
[381919349,1756408239097,-480.0,0.00019178,2]
[381919350,1756408239106,-480.0,0.00019178,2]
[381919351,1756408239116,-480.0,0.00019178,2]
[381919352,1756408239125,-480.0,0.00019178,2]
[381919353,1756408239135,-628.72,0.00019178,2]
[381919354,1756408239144,-480.0,0.00019178,2]
[381919355,1756408239154,-480.0,0.00019178,2]
[381919356,1756408239163,-480.0,0.00019178,2]
[381919357,1756408239172,-480.0,0.00019178,2]
[381919358,1756408239181,-480.0,0.00019178,2]
[381919359,1756408239191,-480.0,0.00019178,2]
[381919360,1756408239202,-480.0,0.00019178,2]
[381919361,1756408239211,-480.0,0.00019178,2]
[381919362,1756408239220,-480.0,0.00019178,2]
[381919363,1756408239229,-480.0,0.00019178,2]
[381919364,1756408239238,-610.65,0.00019178,2]
[381919365,1756408239247,-480.0,0.00019178,2]
[381919366,1756408239258,-480.0,0.00019178,2]
[381919367,1756408239267,-181.74,0.00019178,2]
[381919368,1756408239276,-480.0,0.00019178,2]
[381919369,1756408239286,-480.0,0.00019178,2]
[381919370,1756408239295,-480.0,0.00019178,2]
[381919371,1756408239304,-480.0,0.00019178,2]
[381919372,1756408239314,-480.0,0.00019178,2]
[381919373,1756408239323,-480.0,0.00019178,2]
[381919374,1756408239332,-480.0,0.00019452,2]
[381919375,1756408239342,-480.0,0.00019452,2]
[381919376,1756408239351,-480.0,0.00019452,2]
[381919377,1756408239361,-480.0,0.00019452,2]
[381919378,1756408239370,-480.0,0.00019452,2]
[381919380,1756408239380,-480.0,0.00019452,2]
[381919382,1756408239389,-480.0,0.00019452,2]
[381919383,1756408239398,-480.0,0.00019452,2]
[381919384,1756408239408,-480.0,0.00019452,2]
[381919385,1756408239417,-480.0,0.00019452,2]
[381919386,1756408239426,-480.0,0.00019452,2]
[381919387,1756408239435,-480.0,0.00019452,2]
[381919388,1756408239444,-480.0,0.00019452,2]
[381919389,1756408239453,-315.11,0.00019452,2]
[381919390,1756408239462,-549.14,0.00019452,2]
[381919391,1756408239471,-527.73,0.00019452,2]
[381919393,1756408239481,-452.77174983,0.00019452,2]
[381919394,1756408239490,-480.0,0.00019452,2]
[381919395,1756408239499,-234.14,0.00019452,2]
[381919396,1756408239509,-480.0,0.00019452,2]
[381919397,1756408239518,-480.0,0.00019452,2]
[381919398,1756408239527,-603.15,0.00019452,2]
[381919399,1756408239537,-480.0,0.00019452,2]
[381919400,1756408239547,-529.93,0.00019452,2]
[381919401,1756408239556,-495.47,0.00019452,2]
[381919402,1756408239565,-480.0,0.00019452,2]
[381919403,1756408239574,-480.0,0.00019452,2]
[381919404,1756408239583,-480.0,0.00019452,2]
[381919405,1756408239593,-480.0,0.00019452,2]
[381919406,1756408239602,-886.53,0.00019452,2]
[381919407,1756408239611,-480.0,0.00019452,2]
[381919408,1756408239620,-480.0,0.00019452,2]
[381919409,1756408239630,-480.0,0.00019452,2]
[381919411,1756408239639,-480.0,0.00019452,2]
[381919412,1756408239648,-480.0,0.00019452,2]
[381919413,1756408239657,-480.0,0.00019452,2]
[381919414,1756408239666,-480.0,0.00019452,2]
[381919415,1756408239675,-480.0,0.00019452,2]
[381919416,1756408239685,-480.0,0.00019452,2]
[381919417,1756408239694,-521.45,0.00019452,2]
[381919418,1756408239703,-480.0,0.00019452,2]
[381919419,1756408239713,-480.0,0.00019452,2]
[381919420,1756408239722,-480.0,0.00019452,2]
[381919421,1756408239731,-591.67,0.00019452,2]
[381919422,1756408239740,-480.0,0.00019452,2]
[381919424,1756408239750,-480.0,0.00019452,2]
[381919426,1756408239759,-480.0,0.00019452,2]
[381919427,1756408239768,-480.0,0.00019452,2]
[381919428,1756408239778,-470.7765803,0.00019452,2]
[381919429,1756408239787,-669.89,0.00019452,2]
[381919430,1756408239796,-480.0,0.00019452,2]
[381919431,1756408239806,-480.0,0.00019452,2]
[381919432,1756408239815,-480.0,0.00019452,2]
[381919433,1756408239824,-480.0,0.00019452,2]
[381919434,1756408239834,-480.0,0.00019452,2]
[381919435,1756408239843,-483.83,0.00019452,2]
[381919436,1756408239852,-480.0,0.00019452,2]
[381919437,1756408239861,-480.0,0.00019452,2]
[381919438,1756408239871,-480.0,0.00019452,2]
[381919439,1756408239880,-480.0,0.00019452,2]
[381919440,1756408239889,-480.0,0.00019452,2]
[381919441,1756408239899,-480.0,0.00019452,2]
[381919442,1756408239908,-480.0,0.00019452,2]
[381919443,1756408239917,-480.0,0.00019452,2]
[381919444,1756408239927,-480.0,0.00019452,2]
[381919445,1756408239936,-628.72,0.00019452,2]
[381919446,1756408239945,-480.0,0.00019452,2]
[381919447,1756408239955,-480.0,0.00019452,2]
[381919448,1756408239964,-480.0,0.00019452,2]
[381919449,1756408239974,-480.0,0.00019452,2]
[381919450,1756408239983,-480.0,0.00019452,2]
[381919451,1756408239992,-480.0,0.00019452,2]
[381919452,1756408240002,-480.0,0.00019452,2]
[381919453,1756408240138,-480.0,0.00019452,2]
[381919454,1756408240149,-480.0,0.00019452,2]
[381919455,1756408240159,-480.0,0.00019452,2]
[381919456,1756408240168,-300.0,0.00019561,20]
[381919457,1756408240178,-300.0,0.00019561,20]
[381919458,1756408240188,-300.0,0.00019561,20]
[381919459,1756408240200,-300.0,0.00019561,20]
[381919460,1756408240209,-1000.0,0.00019721,2]
[381919461,1756408240219,-1000.0,0.00019721,2]
[381919462,1756408240228,-1000.0,0.00019721,2]
[381919463,1756408240239,-500.0,0.00019721,2]
[381919464,1756408240248,-1000.0,0.00019721,2]
[381919465,1756408240257,-1000.0,0.00019721,2]
[381919466,1756408240266,-1000.0,0.00019721,2]
[381919467,1756408240278,-480.0,0.00019726,2]
[381919468,1756408240288,-529.93,0.00019726,2]
[381919469,1756408240297,-495.47,0.00019726,2]
[381919470,1756408240306,-886.53,0.00019726,2]
[381919471,1756408240315,-480.0,0.00019726,2]
[381919472,1756408240325,-480.0,0.00019726,2]
[381919473,1756408240334,-480.0,0.00019726,2]
[381919474,1756408240343,-480.0,0.00019726,2]
[381919475,1756408240352,-480.0,0.00019726,2]
[381919476,1756408240361,-480.0,0.00019726,2]
[381919477,1756408240370,-480.0,0.00019726,2]
[381919478,1756408240379,-521.45,0.00019726,2]
[381919479,1756408240388,-480.0,0.00019726,2]
[381919480,1756408240397,-480.0,0.00019726,2]
[381919481,1756408240407,-669.89,0.00019726,2]
[381919482,1756408240416,-480.0,0.00019726,2]
[381919483,1756408240426,-480.0,0.00019726,2]
[381919484,1756408240435,-480.0,0.00019726,2]